bitfinex-derivatives/quotes_BTCF0:USTF0_20240923
["timestamp","ask_amount","ask_price","bid_price","bid_amount"]
[1727073304688,0.005,63731.0,63730.0,0.53030709]
[1727073305688,0.005,63731.0,63730.0,0.63887353]
[1727073305894,0.005,63731.0,63730.0,0.53030709]
[1727073306299,0.005,63731.0,63730.0,0.63888803]
[1727073306689,0.005,63731.0,63730.0,0.53030709]
[1727073307091,0.005,63731.0,63730.0,0.6244507]
[1727073307794,0.005,63731.0,63730.0,0.53030709]
[1727073308496,0.005,63731.0,63730.0,0.63876602]
[1727073308892,0.005,63731.0,63730.0,0.63866743]
[1727073311205,0.005,63731.0,63730.0,0.64769969]
[1727073312503,0.005,63731.0,63730.0,0.53926385]
[1727073312897,0.005,63731.0,63730.0,0.64770854]
[1727073313092,0.005,63731.0,63730.0,0.64770724]
[1727073315604,0.128641,63745.0,63730.0,0.56924824]
[1727073315605,0.078447,63740.0,63730.0,0.56924824]
[1727073315805,0.078447,63740.0,63739.0,0.3608]
[1727073316107,0.078447,63740.0,63739.0,0.45177259]
[1727073316413,0.44159278,63747.0,63739.0,0.53177259]
[1727073316717,0.078434,63751.0,63749.0,0.078435]
[1727073316901,0.078434,63751.0,63746.0,0.4408]
[1727073316902,0.078434,63751.0,63750.0,0.24918763]
[1727073318103,0.078434,63751.0,63750.0,0.24895739]
[1727073318403,0.078434,63751.0,63750.0,0.32726219]
[1727073319111,0.078434,63751.0,63750.0,0.24726219]
[1727073319409,0.078434,63751.0,63750.0,0.080435]
[1727073320708,0.00889209,63752.0,63750.0,0.080435]
[1727073321010,0.0492,63756.0,63750.0,0.080435]
[1727073321011,0.078429,63755.0,63750.0,0.080435]
[1727073321211,0.078429,63755.0,63754.0,0.3608]
[1727073323104,0.078429,63755.0,63754.0,0.40772564]
[1727073324307,0.078429,63755.0,63754.0,0.3618]
[1727073324501,0.079429,63755.0,63754.0,0.3628]
[1727073325303,0.079429,63755.0,63754.0,0.002]
[1727073325304,1.228418,63755.0,63754.0,0.002]
[1727073325510,1.275718,63755.0,63754.0,0.002]
[1727073326411,0.079429,63755.0,63754.0,0.002]
[1727073327515,0.001,63755.0,63754.0,0.22302799]
[1727073328819,0.001,63755.0,63754.0,0.16043]
[1727073331023,0.001,63755.0,63754.0,0.52123]
[1727073331409,0.07842,63762.0,63754.0,0.4428]
[1727073331611,0.07842,63762.0,63761.0,0.08]
[1727073332720,0.001,63762.0,63761.0,0.519221]
[1727073332919,0.001,63762.0,63761.0,0.567721]
[1727073334026,0.001,63762.0,63761.0,0.568721]
[1727073334214,0.078417,63765.0,63761.0,0.569721]
[1727073334411,0.078417,63765.0,63762.0,0.04685622]
[1727073336116,0.078417,63765.0,63764.0,0.08]
[1727073336922,0.078417,63765.0,63764.0,0.14259799]
[1727073337116,0.00915258,63767.0,63764.0,0.22101599]
[1727073337316,0.1281,63777.0,63764.0,0.22101599]
[1727073337511,0.1281,63777.0,63769.0,0.12682824]
[1727073337911,0.08,63773.0,63769.0,0.04682824]
[1727073338125,0.0481,63777.0,63769.0,0.04682824]
[1727073338126,0.08,63770.0,63769.0,0.04682824]
[1727073338622,0.078411,63769.0,63768.0,0.04682824]
[1727073339716,0.078411,63769.0,63767.0,0.04682824]
[1727073340325,0.078411,63769.0,63768.0,0.04682824]
[1727073340527,0.078413,63768.0,63767.0,0.04682824]
[1727073340828,0.078413,63768.0,63766.0,0.04682824]
[1727073341027,0.078414,63767.0,63766.0,0.04682824]
[1727073341222,0.078414,63767.0,63765.0,0.04682824]
[1727073341420,0.078414,63767.0,63763.0,0.06259799]
[1727073341619,0.08,63764.0,63762.0,0.06244479]
[1727073341823,0.08,63764.0,63761.0,0.3608]
[1727073341824,0.07842,63762.0,63761.0,0.3608]
[1727073343124,0.07842,63762.0,63761.0,0.3698]
[1727073344319,0.07842,63762.0,63761.0,0.3778]
[1727073344835,0.07842,63762.0,63761.0,0.3748]
[1727073345131,0.07842,63762.0,63761.0,0.014]
[1727073345729,0.07842,63762.0,63761.0,0.011]
[1727073346529,0.07842,63762.0,63761.0,0.009]
[1727073347034,0.07842,63762.0,63761.0,0.07153127]
[1727073347735,0.07842,63762.0,63761.0,0.06653127]
[1727073348038,0.07842,63762.0,63761.0,0.006]
[1727073348336,0.07842,63762.0,63761.0,0.06853127]
[1727073348635,0.07842,63762.0,63761.0,0.3668]
[1727073349530,0.07842,63762.0,63761.0,0.3658]
[1727073349728,0.00919328,63767.0,63763.0,0.078419]
[1727073349729,0.078416,63766.0,63763.0,0.078419]
[1727073350034,0.078416,63766.0,63765.0,0.14256579]
[1727073350230,0.00919328,63767.0,63765.0,0.08]
[1727073350436,0.078412,63769.0,63765.0,0.14256368]
[1727073350736,0.078412,63769.0,63767.0,0.04692478]
[1727073351331,0.078412,63769.0,63768.0,0.04692478]
[1727073351928,0.078412,63769.0,63764.0,0.078417]
[1727073352839,0.08915337,63770.0,63764.0,0.078417]
[1727073353041,0.08915337,63770.0,63761.0,0.3608]
[1727073353042,0.07842,63762.0,63761.0,0.3608]
[1727073354333,0.07842,63762.0,63761.0,0.3628]
[1727073354834,0.07842,63762.0,63761.0,0.3658]
[1727073355044,0.009138,63762.0,63761.0,0.444221]
[1727073355234,0.078415,63767.0,63761.0,0.444221]
[1727073355541,0.078415,63767.0,63762.0,0.07842]
[1727073356639,0.08740685,63767.0,63762.0,0.07842]
[1727073357241,0.08740685,63767.0,63764.0,0.08]
[1727073357537,0.3608,63771.0,63765.0,0.078416]
[1727073357839,0.07841,63771.0,63769.0,0.04697564]
[1727073358050,0.07841,63771.0,63768.0,0.04697564]
[1727073358051,0.07841,63770.0,63768.0,0.04697564]
[1727073358239,0.07841,63770.0,63763.0,0.06256368]
[1727073358240,0.078417,63765.0,63762.0,0.09767564]
[1727073358747,0.078417,63765.0,63762.0,0.09567564]
[1727073358934,0.078417,63765.0,63762.0,0.0487]
[1727073359440,0.078419,63764.0,63762.0,0.1270048]
[1727073360147,0.078419,63764.0,63762.0,0.1280048]
[1727073360339,0.078419,63764.0,63762.0,0.001]
[1727073360541,0.078419,63763.0,63762.0,0.001]
[1727073361342,0.078419,63763.0,63762.0,0.002]
[1727073362350,0.078419,63763.0,63762.0,0.001]
[1727073362560,0.078419,63763.0,63762.0,0.002]
[1727073363462,0.078413,63768.0,63762.0,0.002]
[1727073363662,0.078416,63766.0,63763.0,0.1567238]
[1727073363851,0.078417,63765.0,63763.0,0.0783048]
[1727073365459,0.078418,63764.0,63763.0,0.0783438]
[1727073365767,0.078418,63764.0,63762.0,0.0793438]
[1727073365966,0.078419,63763.0,63762.0,0.0793438]
[1727073366365,0.078419,63763.0,63762.0,0.001]
[1727073366957,0.078419,63763.0,63759.0,0.04701173]
[1727073367164,0.078419,63763.0,63760.0,0.04701173]
[1727073367758,0.078422,63760.0,63759.0,0.04701173]
[1727073368066,0.49188,63764.0,63762.0,0.001]
[1727073368367,0.2338468,63763.0,63762.0,0.002]
[1727073368869,0.1038468,63763.0,63762.0,0.001]
[1727073369270,0.2338468,63763.0,63762.0,0.001]
[1727073369758,0.078421,63761.0,63760.0,0.003]
[1727073369959,0.1038488,63761.0,63760.0,0.003]
[1727073370972,0.078422,63760.0,63759.0,0.005]
[1727073371559,0.078426,63758.0,63756.0,0.04937027]
[1727073371759,0.13,63763.0,63756.0,0.04937027]
[1727073372070,0.02542826,63762.0,63756.0,0.04937027]
[1727073372565,0.02542826,63762.0,63756.0,0.00235253]
[1727073372767,0.02542826,63762.0,63756.0,0.00535253]
[1727073372973,0.02542892,63761.0,63756.0,0.00535253]
[1727073373269,0.13,63763.0,63756.0,0.00535253]
[1727073373464,0.0254288,63762.0,63756.0,0.00535253]
[1727073374066,0.13,63763.0,63760.0,0.0626823]
[1727073374272,0.13,63763.0,63757.0,0.0783438]
[1727073374483,0.13,63763.0,63758.0,0.16853993]
[1727073374778,0.078425,63758.0,63757.0,0.0783438]
[1727073374964,0.078425,63758.0,63757.0,0.16861015]
[1727073375566,0.078425,63758.0,63757.0,0.0793438]
[1727073376165,0.078425,63758.0,63757.0,0.16963297]
[1727073376368,0.078425,63758.0,63756.0,0.08069633]
[1727073376767,0.078425,63758.0,63757.0,0.005]
[1727073377168,0.078425,63758.0,63757.0,0.0833438]
[1727073377573,0.078425,63758.0,63757.0,0.005]
[1727073377773,0.078425,63758.0,63757.0,0.009]
[1727073377973,0.208425,63758.0,63757.0,0.009]
[1727073378174,0.286851,63758.0,63757.0,0.009]
[1727073378476,0.078432,63752.0,63751.0,0.06267499]
[1727073378671,0.13,63752.0,63747.0,0.0783438]
[1727073378875,0.13,63752.0,63750.0,0.06266734]
[1727073379067,0.208432,63752.0,63751.0,0.06266734]
[1727073379268,0.078432,63752.0,63751.0,0.06266734]
[1727073379476,0.3608,63753.0,63747.0,0.4391438]
[1727073379669,0.3608,63753.0,63748.0,0.168719]
[1727073379876,0.3608,63753.0,63749.0,0.0783438]
[1727073380281,0.3608,63753.0,63751.0,0.13]
[1727073380484,0.00904989,63758.0,63752.0,0.124532]
[1727073380776,0.078425,63758.0,63752.0,0.2028758]
[1727073380987,0.078425,63758.0,63757.0,0.06263582]
[1727073382076,0.078425,63758.0,63753.0,0.0942]
[1727073383076,0.078425,63758.0,63757.0,0.003]
[1727073384484,0.078425,63758.0,63753.0,0.1002]
[1727073385381,0.078425,63758.0,63753.0,0.1022]
[1727073385881,0.078425,63758.0,63757.0,0.002]
[1727073387673,0.078425,63758.0,63753.0,0.1012]
[1727073387881,0.078425,63758.0,63753.0,0.1072]
[1727073388687,0.078425,63758.0,63753.0,0.1002]
[1727073388877,0.078425,63758.0,63757.0,0.003]
[1727073389181,0.078425,63758.0,63757.0,0.06663582]
[1727073389483,0.078425,63758.0,63757.0,0.06363582]
[1727073391182,0.078425,63758.0,63757.0,0.06663582]
[1727073391376,0.208425,63758.0,63757.0,0.004]
[1727073392880,0.078425,63758.0,63757.0,0.004]
[1727073393188,0.078425,63758.0,63757.0,0.0666638]
[1727073394178,0.078425,63758.0,63757.0,0.004]
[1727073397276,0.10385387,63758.0,63757.0,0.004]
[1727073398084,0.078425,63758.0,63757.0,0.004]
[1727073398877,0.1038538,63758.0,63757.0,0.004]
[1727073399694,0.10385376,63758.0,63757.0,0.004]
[1727073399985,0.078425,63758.0,63757.0,0.004]
[1727073404380,0.078425,63758.0,63757.0,0.0823438]
[1727073406490,0.078425,63758.0,63757.0,0.17262918]
[1727073407488,0.078425,63758.0,63757.0,0.17269799]
[1727073408186,0.078425,63758.0,63757.0,0.09428538]
[1727073417282,0.078425,63758.0,63757.0,0.17273159]
[1727073417498,0.078425,63758.0,63757.0,0.09428538]
[1727073419193,0.078425,63758.0,63757.0,0.004]
[1727073420494,0.10385286,63758.0,63757.0,0.004]
[1727073421494,0.078425,63758.0,63757.0,0.004]
[1727073424499,0.10385285,63758.0,63757.0,0.004]
[1727073426212,0.078425,63758.0,63757.0,0.09428657]
[1727073429894,0.08740751,63763.0,63757.0,0.09428657]
[1727073430095,0.078414,63767.0,63762.0,0.51925728]
[1727073430294,0.440289,63772.0,63766.0,0.158414]
[1727073430604,0.4482729,63772.0,63770.0,0.08]
[1727073430806,0.4482729,63772.0,63768.0,0.07845728]
[1727073431489,0.4482729,63772.0,63771.0,0.06269962]
[1727073432489,0.4482729,63772.0,63770.0,0.06269962]
[1727073433197,0.3698639,63772.0,63770.0,0.06269962]
[1727073433405,0.3698639,63772.0,63771.0,0.06269962]
[1727073433595,0.4498639,63772.0,63771.0,0.06269962]
[1727073433797,0.4518639,63772.0,63771.0,0.06369962]
[1727073434506,0.4518639,63772.0,63771.0,0.001]
[1727073434702,0.4518639,63772.0,63771.0,0.06369962]
[1727073434998,0.4518639,63772.0,63771.0,0.06469962]
[1727073435603,0.4518639,63772.0,63771.0,0.002]
[1727073435803,0.4518639,63772.0,63771.0,0.06469962]
[1727073436205,0.4518639,63772.0,63771.0,0.002]
[1727073437205,0.3718639,63772.0,63771.0,0.002]
[1727073437508,0.3718639,63772.0,63771.0,0.080409]
[1727073437808,0.3718639,63772.0,63771.0,0.14310862]
[1727073437809,0.0110639,63772.0,63771.0,0.14310862]
[1727073439093,0.0110639,63772.0,63771.0,0.080409]
[1727073446811,0.0110639,63772.0,63771.0,0.160409]
[1727073447109,0.002,63772.0,63771.0,0.630849]
[1727073448010,0.002,63772.0,63771.0,0.160409]
[1727073448310,0.00235278,63778.0,63777.0,0.078402]
[1727073448509,0.01151441,63778.0,63777.0,0.078402]
[1727073449210,0.01151441,63778.0,63777.0,0.14110162]
[1727073450417,0.01351441,63778.0,63777.0,0.14210162]
[1727073450920,0.01351441,63778.0,63777.0,0.14310162]
[1727073451517,0.01351441,63778.0,63777.0,0.080402]
[1727073452310,0.01351441,63778.0,63777.0,0.14294167]
[1727073453421,0.01116163,63778.0,63777.0,0.1429363]
[1727073453712,0.01116163,63778.0,63777.0,0.080402]
[1727073457807,0.01116163,63778.0,63777.0,0.160402]
[1727073476125,0.03658003,63778.0,63777.0,0.160402]
[1727073479229,0.01116163,63778.0,63777.0,0.24978158]
[1727073479419,0.01116163,63778.0,63777.0,0.34360315]
[1727073479825,0.01116163,63778.0,63777.0,0.34358213]
[1727073480223,0.01116163,63778.0,63777.0,0.24976056]
[1727073482636,0.01116163,63778.0,63777.0,0.34385167]
[1727073483729,0.01116163,63778.0,63777.0,0.24976056]
[1727073485631,0.01116163,63778.0,63777.0,0.09135856]
[1727073485831,0.08956163,63778.0,63777.0,0.09135856]
[1727073486031,0.01116163,63778.0,63777.0,0.09135856]
[1727073486437,0.16956163,63778.0,63777.0,0.002]
[1727073486645,0.26526163,63778.0,63777.0,0.002]
[1727073486827,0.26526163,63778.0,63777.0,0.06472604]
[1727073487244,0.26526163,63778.0,63777.0,0.002]
[1727073487536,1.33566163,63778.0,63777.0,0.002]
[1727073488633,0.73566163,63778.0,63777.0,0.002]
[1727073488940,0.26526163,63778.0,63777.0,0.002]
[1727073493347,0.73566163,63778.0,63777.0,0.002]
[1727073494433,0.76108438,63778.0,63777.0,0.002]
[1727073495047,0.29068438,63778.0,63777.0,0.002]
[1727073495836,0.38434005,63778.0,63777.0,0.002]
[1727073498744,0.74514005,63778.0,63777.0,0.002]
[1727073499543,0.65148438,63778.0,63777.0,0.002]
[1727073499941,0.74514005,63778.0,63777.0,0.002]
[1727073500151,0.65148438,63778.0,63777.0,0.002]
[1727073500836,0.74514005,63778.0,63777.0,0.002]
[1727073501438,0.62606163,63778.0,63777.0,0.002]
[1727073503345,0.70446163,63778.0,63777.0,0.002]
[1727073503539,1.69646163,63778.0,63770.0,0.04696548]
[1727073503847,1.69646163,63778.0,63764.0,0.0079]
[1727073503848,0.4408,63771.0,63765.0,0.04696548]
[1727073504145,0.078416,63765.0,63764.0,0.04696548]
[1727073504345,0.158416,63765.0,63764.0,0.04696548]
[1727073504643,0.078418,63764.0,63763.0,0.04696548]
[1727073504846,0.158418,63764.0,63763.0,0.04696548]
[1727073505643,0.078419,63763.0,63762.0,0.04696548]
[1727073507849,0.078419,63763.0,63762.0,0.04796548]
[1727073508241,0.00921499,63764.0,63762.0,0.001]
[1727073508449,0.158414,63767.0,63762.0,0.001]
[1727073508655,0.158414,63767.0,63764.0,0.04692978]
[1727073508841,0.158414,63767.0,63765.0,0.0459]
[1727073509042,0.158414,63767.0,63765.0,0.0951]
[1727073509967,0.158414,63767.0,63766.0,0.0467]
[1727073510438,0.161414,63767.0,63766.0,0.0467]
[1727073510642,0.0922259,63767.0,63766.0,0.0467]
[1727073511451,0.0932259,63767.0,63766.0,0.0467]
[1727073515352,0.0932259,63767.0,63765.0,0.0951]
[1727073515558,0.078416,63765.0,63763.0,0.3608]
[1727073515757,0.08,63764.0,63763.0,0.3608]
[1727073516445,0.08,63764.0,63763.0,0.42352604]
[1727073517455,0.08,63764.0,63763.0,0.06272604]
[1727073517647,0.08,63764.0,63762.0,0.06272604]
[1727073518442,0.081,63764.0,63762.0,0.06272604]
[1727073519153,0.08,63764.0,63762.0,0.06272604]
[1727073520245,0.08,63764.0,63762.0,0.06372604]
[1727073521250,0.078419,63763.0,63762.0,0.001]
[1727073522657,0.08,63764.0,63760.0,0.04699053]
[1727073522658,0.078421,63761.0,63760.0,0.04699053]
[1727073522854,0.158421,63761.0,63760.0,0.04699053]
[1727073523860,0.158421,63761.0,63760.0,0.05199053]
[1727073524459,0.158421,63761.0,63760.0,0.005]
[1727073527447,1.307362,63761.0,63760.0,0.05198827]
[1727073527653,0.47052,63760.0,63749.0,0.07840477]
[1727073527853,0.68,63761.0,63748.0,0.3616]
[1727073527854,0.078436,63749.0,63748.0,0.3616]
[1727073528164,0.078436,63749.0,63748.0,0.3608]
[1727073528955,0.078436,63749.0,63748.0,0.3738]
[1727073529761,0.078436,63749.0,63748.0,0.3848]
[1727073531653,0.078436,63749.0,63748.0,0.024]
[1727073535961,0.08759408,63749.0,63748.0,0.024]
[1727073541060,0.00915808,63749.0,63748.0,0.024]
[1727073541371,0.08,63750.0,63748.0,0.024]
[1727073542077,0.078429,63755.0,63748.0,0.024]
[1727073542274,0.078429,63755.0,63751.0,0.078433]
[1727073542573,0.08,63752.0,63751.0,0.078433]
[1727073543772,0.078429,63755.0,63753.0,0.078431]
[1727073543773,0.158429,63755.0,63753.0,0.078431]
[1727073543975,0.158429,63755.0,63754.0,0.1403]
[1727073545871,0.158429,63755.0,63754.0,0.1453]
[1727073546574,0.158429,63755.0,63754.0,0.1513]
[1727073550877,0.08,63755.0,63754.0,0.1513]
[1727073551190,0.08,63755.0,63754.0,0.22973]
[1727073556599,0.08,63755.0,63754.0,0.30813477]
[1727073556886,0.08,63755.0,63754.0,0.22973]
[1727073557087,0.08,63755.0,63754.0,0.30813477]
[1727073557472,0.08,63755.0,63754.0,0.39753681]
[1727073557886,0.08,63755.0,63754.0,0.30813477]
[1727073558288,0.08,63755.0,63754.0,0.3975368]
[1727073559486,0.158429,63755.0,63754.0,0.08940477]
[1727073559685,0.158429,63755.0,63754.0,0.011]
[1727073561982,0.18385918,63755.0,63754.0,0.011]
[1727073569287,0.158429,63755.0,63754.0,0.011]
[1727073575300,0.158429,63755.0,63754.0,0.08940477]
[1727073575792,0.158429,63755.0,63754.0,0.011]
[1727073575992,0.158429,63755.0,63754.0,0.08940477]
[1727073576194,0.158429,63755.0,63754.0,0.011]
[1727073576802,0.158429,63755.0,63754.0,0.08940477]
[1727073577398,0.158429,63755.0,63754.0,0.011]
[1727073577704,0.158429,63755.0,63754.0,0.08940477]
[1727073578092,0.158429,63755.0,63754.0,0.17883898]
[1727073580399,0.08,63755.0,63754.0,0.17883898]
[1727073582094,0.08,63755.0,63754.0,0.08940477]
[1727073582502,0.08,63755.0,63754.0,0.17884282]
[1727073582703,0.08,63755.0,63754.0,0.17882016]
[1727073584006,0.08,63755.0,63754.0,0.17881846]
[1727073584605,0.08,63755.0,63754.0,0.011]
[1727073588607,0.10542914,63755.0,63754.0,0.011]
[1727073588904,0.08,63755.0,63754.0,0.011]
[1727073589606,0.10542903,63755.0,63754.0,0.011]
[1727073591611,0.08,63755.0,63754.0,0.17885012]
[1727073591906,0.08,63755.0,63754.0,0.08940477]
[1727073592112,0.08,63755.0,63754.0,0.17888113]
[1727073592312,0.08,63755.0,63754.0,0.08940477]
[1727073593005,0.08,63755.0,63754.0,0.17887629]
[1727073593809,0.08,63755.0,63754.0,0.17890606]
[1727073595309,0.08,63755.0,63754.0,0.10050129]
[1727073595897,0.08,63755.0,63754.0,0.17895475]
[1727073596809,0.158429,63755.0,63754.0,0.17895475]
[1727073599807,0.19908573,63755.0,63748.0,0.06277003]
[1727073600008,0.078441,63745.0,63744.0,0.06277003]
[1727073600201,0.08,63745.0,63742.0,0.06277003]
[1727073600518,0.078445,63742.0,63741.0,0.06277003]
[1727073600707,0.158445,63742.0,63741.0,0.06277003]
[1727073601810,0.158445,63742.0,63739.0,0.1407]
[1727073601811,0.158445,63742.0,63739.0,0.20347003]
[1727073602110,0.158445,63742.0,63741.0,0.014]
[1727073602613,0.158445,63742.0,63741.0,0.026]
[1727073602614,0.159445,63742.0,63741.0,0.026]
[1727073603015,1.2555207,63742.0,63741.0,0.026]
[1727073603311,1.2555212,63742.0,63741.0,0.026]
[1727073603505,1.2232762,63742.0,63728.0,0.0079]
[1727073603706,0.078465,63726.0,63724.0,0.0079]
[1727073604014,0.078465,63726.0,63719.0,0.1395]
[1727073604015,0.08,63726.0,63719.0,0.1395]
[1727073604211,0.08,63722.0,63719.0,0.1387]
[1727073605413,0.08,63722.0,63719.0,0.1507]
[1727073606330,0.078471,63721.0,63719.0,0.026]
[1727073607117,0.078471,63721.0,63719.0,0.017]
[1727073607811,0.079471,63721.0,63719.0,0.017]
[1727073608018,0.078473,63719.0,63707.0,0.0079]
[1727073608221,0.08,63708.0,63701.0,0.0079]
[1727073608426,0.08,63702.0,63700.0,0.1403]
[1727073609910,0.081,63702.0,63700.0,0.1403]
[1727073610721,0.082,63702.0,63701.0,0.3608]
[1727073611832,0.09121853,63702.0,63701.0,0.3608]
[1727073612809,0.002,63702.0,63701.0,0.4408]
[1727073613119,0.08,63707.0,63705.0,0.078489]
[1727073614503,0.081,63707.0,63705.0,0.078489]
[1727073614710,0.082,63707.0,63705.0,0.078489]
[1727073615106,0.082,63707.0,63701.0,0.3608]
[1727073615316,0.078495,63701.0,63700.0,0.1403]
[1727073616521,0.208495,63701.0,63700.0,0.1403]
[1727073616722,0.13,63701.0,63700.0,0.1403]
[1727073617917,0.131,63701.0,63700.0,0.1403]
[1727073618512,0.132,63701.0,63700.0,0.1403]
[1727073619111,0.002,63701.0,63700.0,0.1403]
[1727073620216,0.132,63701.0,63700.0,0.1403]
[1727073622924,0.210495,63701.0,63698.0,0.3608]
[1727073624830,0.210495,63701.0,63698.0,0.3618]
[1727073625329,0.132,63701.0,63698.0,0.3618]
[1727073625528,0.132,63701.0,63699.0,0.0486]
[1727073626030,0.132,63701.0,63700.0,0.0992]
[1727073626422,0.210495,63701.0,63700.0,0.0992]
[1727073627926,0.078496,63700.0,63699.0,0.001]
[1727073628429,0.078498,63699.0,63698.0,0.3608]
[1727073631031,0.079498,63699.0,63698.0,0.3618]
[1727073631432,0.08835884,63699.0,63698.0,0.3608]
[1727073631633,0.08835884,63699.0,63698.0,0.3618]
[1727073633439,0.08935884,63699.0,63698.0,0.3618]
[1727073637742,0.08935884,63699.0,63698.0,0.001]
[1727073639635,0.0785,63697.0,63696.0,0.07845346]
[1727073639840,0.4908,63697.0,63691.0,0.09409111]
[1727073640145,0.208506,63692.0,63691.0,0.09409111]
[1727073641146,0.208506,63692.0,63691.0,0.09509111]
[1727073641746,0.208506,63692.0,63691.0,0.09409111]
[1727073641934,0.209506,63692.0,63691.0,0.09509111]
[1727073642735,0.210506,63692.0,63691.0,0.09509111]
[1727073644048,0.210506,63692.0,63691.0,0.001]
[1727073645250,0.21954048,63692.0,63691.0,0.001]
[1727073648345,0.16954048,63692.0,63691.0,0.001]
[1727073652959,0.01103448,63692.0,63691.0,0.3618]
[1727073653154,0.09103448,63692.0,63691.0,0.001]
[1727073653354,0.09103448,63692.0,63691.0,0.440307]
[1727073653666,0.01103448,63692.0,63691.0,0.53313577]
[1727073653856,0.01103448,63692.0,63691.0,0.64352033]
[1727073655053,0.09103448,63692.0,63691.0,0.64352033]
[1727073656259,0.01103448,63692.0,63691.0,0.53313577]
[1727073656662,0.14103448,63692.0,63691.0,0.53313577]
[1727073657164,0.14103448,63692.0,63691.0,0.53290651]
[1727073660362,0.14103448,63692.0,63691.0,0.62700753]
[1727073661461,0.14103448,63692.0,63691.0,0.53290651]
[1727073663360,0.29804648,63692.0,63691.0,0.09259951]
[1727073663666,0.29804648,63692.0,63680.0,0.0079]
[1727073663667,0.078509,63690.0,63687.0,0.06274193]
[1727073663876,0.569311,63688.0,63687.0,0.04705621]
[1727073664558,0.4908,63688.0,63684.0,0.06274193]
[1727073664766,0.569311,63688.0,63687.0,0.04704232]
[1727073664977,0.078515,63685.0,63684.0,0.06274193]
[1727073665155,0.208515,63685.0,63684.0,0.06274193]
[1727073665556,0.078516,63684.0,63683.0,0.06274193]
[1727073665761,0.208516,63684.0,63683.0,0.06274193]
[1727073666464,0.208516,63684.0,63672.0,0.17263202]
[1727073666465,0.078517,63683.0,63682.0,0.06274193]
[1727073666670,0.208517,63683.0,63682.0,0.06274193]
[1727073667474,0.13,63683.0,63682.0,0.06268246]
[1727073667673,0.13,63683.0,63677.0,0.078524]
[1727073667674,0.13917672,63683.0,63677.0,0.078524]
[1727073667863,0.13917672,63683.0,63678.0,0.09470714]
[1727073668171,0.13917672,63683.0,63679.0,0.09470714]
[1727073668367,0.13917672,63683.0,63682.0,0.06268265]
[1727073668368,0.14017672,63683.0,63682.0,0.06268265]
[1727073668579,0.14117672,63683.0,63682.0,0.06268265]
[1727073668871,0.01117672,63683.0,63681.0,0.0451]
[1727073669071,0.14117672,63683.0,63681.0,0.0451]
[1727073669276,0.14117672,63683.0,63682.0,0.0459]
[1727073671262,0.21969372,63683.0,63682.0,0.0459]
[1727073673263,0.14117672,63683.0,63682.0,0.0459]
[1727073673469,0.14117672,63683.0,63682.0,0.124419]
[1727073673664,0.14117672,63683.0,63682.0,0.21897583]
[1727073673665,0.01117672,63683.0,63682.0,0.21897583]
[1727073673871,0.002,63683.0,63682.0,0.21897583]
[1727073674275,0.002,63683.0,63682.0,0.21884348]
[1727073674569,0.002,63683.0,63682.0,1.28992348]
[1727073675169,0.002,63683.0,63682.0,1.3840245]
[1727073676668,0.002,63683.0,63682.0,1.28992348]
[1727073678278,0.002,63683.0,63682.0,0.21884348]
[1727073678873,0.002,63683.0,63682.0,0.21892867]
[1727073679072,0.002,63683.0,63682.0,0.29726039]
[1727073679385,0.002,63683.0,63682.0,0.21892867]
[1727073686389,0.002,63683.0,63682.0,0.31302969]
[1727073687877,0.002,63683.0,63682.0,0.21892867]
[1727073689990,0.002,63683.0,63682.0,0.33148483]
[1727073690375,0.00908053,63687.0,63686.0,0.078514]
[1727073690576,0.07851,63689.0,63688.0,0.078511]
[1727073690782,0.08734438,63689.0,63688.0,0.17302067]
[1727073691781,0.08834438,63689.0,63688.0,0.17302067]
[1727073691982,0.0037,63702.0,63688.0,0.45530967]
[1727073692184,0.078498,63699.0,63698.0,0.06271769]
[1727073692487,0.078498,63699.0,63697.0,0.078499]
[1727073692677,0.078498,63699.0,63697.0,0.15689612]
[1727073693289,0.00894388,63701.0,63699.0,0.078498]
[1727073693483,0.004,63699.0,63698.0,0.078499]
[1727073693788,0.004,63699.0,63698.0,0.17251547]
[1727073694387,0.008,63699.0,63698.0,0.17251547]
[1727073695200,0.008,63699.0,63697.0,0.07834266]
[1727073695201,0.084498,63699.0,63697.0,0.07834266]
[1727073695381,0.084498,63699.0,63694.0,0.078503]
[1727073695382,0.13,63698.0,63696.0,0.07834266]
[1727073695579,0.13,63698.0,63695.0,0.07834266]
[1727073696179,0.13,63698.0,63694.0,0.43914266]
[1727073696388,0.13,63698.0,63696.0,0.06267957]
[1727073696591,0.078503,63695.0,63694.0,0.42347957]
[1727073697178,0.078503,63695.0,63694.0,0.3608]
[1727073697583,0.078503,63695.0,63694.0,0.42347957]
[1727073697890,0.078503,63695.0,63694.0,0.3608]
[1727073698497,0.078503,63695.0,63694.0,0.42447957]
[1727073698685,0.078503,63695.0,63694.0,0.3618]
[1727073698887,0.078503,63695.0,63694.0,0.40882781]
[1727073699080,0.078503,63695.0,63694.0,0.3618]
[1727073701294,0.078503,63695.0,63694.0,0.001]
[1727073701491,0.079503,63695.0,63694.0,0.001]
[1727073703394,0.078509,63690.0,63689.0,0.06273264]
[1727073703592,0.07851,63689.0,63687.0,0.06273264]
[1727073703804,0.078512,63687.0,63686.0,0.06273264]
[1727073704095,0.078516,63684.0,63683.0,0.06273264]
[1727073704297,0.208516,63684.0,63683.0,0.06273264]
[1727073704486,0.078517,63683.0,63682.0,0.06273264]
[1727073704683,0.208517,63683.0,63682.0,0.06273264]
[1727073704894,0.208517,63683.0,63677.0,0.0784158]
[1727073704895,0.078523,63678.0,63677.0,0.0784158]
[1727073705096,0.4908,63683.0,63676.0,0.43921252]
[1727073705097,0.078525,63677.0,63676.0,0.43921252]